bitfinex-derivatives/quotes_ETHF0:USTF0_20250422
["timestamp","ask_amount","ask_price","bid_price","bid_amount"]
[1745311021410,3.2078,1624.6,1624.2,2.91745]
[1745311021610,3.2078,1624.6,1624.3,2.91734]
[1745311021815,4.43898,1624.6,1624.4,42.486]
[1745311022016,4.43898,1624.6,1624.5,2.5029]
[1745311022214,4.43898,1624.6,1624.5,3.3586]
[1745311023210,4.43898,1624.6,1624.5,1.6726]
[1745311023604,4.5470046,1624.6,1624.5,1.6726]
[1745311025117,4.43898,1624.6,1624.5,1.6726]
[1745311025312,3.2078,1624.6,1624.5,1.6726]
[1745311025616,4.43897,1624.6,1624.5,1.6726]
[1745311026009,3.2078,1624.6,1624.5,1.6726]
[1745311026611,3.2078,1624.6,1624.5,3.3383]
[1745311027519,4.43897,1624.6,1624.5,3.3383]
[1745311028822,1.23132,1624.4,1624.3,40.8]
[1745311029017,1.23141,1624.3,1624.1,3.5167]
[1745311029322,3.2078,1624.2,1624.1,4.74824]
[1745311029619,3.2078,1624.2,1624.1,42.59341846]
[1745311029821,8.1228,1624.2,1624.0,0.00922196]
[1745311030008,1.6356,1624.1,1624.0,0.00922196]
[1745311030211,2.86714,1624.1,1624.0,0.00922196]
[1745311032818,8.1228,1624.2,1624.0,1.24084196]
[1745311033021,9.851,1624.2,1624.0,1.24084196]
[1745311033424,11.08249,1624.2,1624.0,1.24084196]
[1745311034332,9.35427,1624.2,1624.0,1.24084196]
[1745311035130,8.1228,1624.2,1624.0,1.24084196]
[1745311035519,1.7196,1624.4,1624.1,1.23154]
[1745311035817,6.15179846,1624.4,1624.2,42.03144]
[1745311036024,6.15179846,1624.4,1624.3,1.7145]
[1745311038426,4.92041846,1624.4,1624.3,1.7145]
[1745311038921,3.21702196,1624.7,1624.3,6.7145]
[1745311039226,6.18173196,1624.7,1624.5,1.23124]
[1745311039522,1.7336,1624.6,1624.3,1.7145]
[1745311039720,4.44813196,1624.7,1624.3,1.7145]
[1745311039721,3.21702196,1624.7,1624.6,1.23117]
[1745311039917,3.21702196,1624.7,1624.5,1.23119]
[1745311040115,3.21702196,1624.7,1624.3,1.7145]
[1745311040423,1.23132,1624.4,1624.0,0.00922196]
[1745311040724,4.9268,1624.3,1624.1,0.8931]
[1745311040933,4.9268,1624.3,1624.2,40.8]
[1745311041227,4.9268,1624.3,1624.2,42.03147]
[1745311041626,3.2078,1624.4,1624.3,1.23132]
[1745311041827,9.8348,1624.6,1624.2,42.03142]
[1745311042127,3.2078,1624.3,1624.2,42.03142]
[1745311043026,3.2078,1624.3,1624.2,42.5643]
[1745311043222,3.2078,1624.3,1624.2,40.8]
[1745311043423,3.2078,1624.5,1624.3,1.23135]
[1745311043623,6.18746,1624.5,1624.3,1.23135]
[1745311043822,2.97972,1624.4,1624.3,1.6885]
[1745311044015,2.97977,1624.4,1624.2,40.8]
[1745311044218,4.9562,1624.3,1624.2,42.03147]
[1745311046228,4.9562,1624.3,1624.2,43.71997]
[1745311048034,6.18759,1624.3,1624.2,43.71997]
[1745311048229,4.9562,1624.3,1624.2,43.71997]
[1745311048931,4.9562,1624.3,1624.2,42.03147]
[1745311049125,4.9562,1624.3,1624.1,0.8931]
[1745311049126,1.23147,1624.2,1624.1,2.12463]
[1745311049318,2.88377,1624.2,1624.1,0.88611846]
[1745311049520,1.23154,1624.1,1624.0,0.00922196]
[1745311049733,7.9702835,1624.1,1624.0,0.00695251]
[1745311049930,7.97029673,1624.1,1624.0,0.00695251]
[1745311051532,7.97029705,1624.1,1624.0,0.00695251]
[1745311052431,5.00965705,1624.1,1624.0,1.23857251]
[1745311052632,3.2078,1624.3,1624.2,1.23147]
[1745311052931,3.2078,1624.4,1624.3,1.23835154]
[1745311053317,4.98941846,1624.4,1624.3,1.23137]
[1745311054230,4.98941846,1624.4,1624.1,1.7252]
[1745311054524,3.2078,1624.2,1624.1,2.95674]
[1745311054730,3.02001,1624.3,1624.1,2.95674]
[1745311054731,1.7886,1624.3,1624.2,1.23147]
[1745311054928,3.2078,1624.4,1624.3,1.23837154]
[1745311055128,3.2078,1624.6,1624.5,1.23123]
[1745311055330,3.20081846,1624.6,1624.5,1.23123]
[1745311055927,3.20081846,1624.6,1624.5,2.06653]
[1745311056335,1.24032196,1624.7,1624.5,2.06653]
[1745311056336,0.00922196,1624.7,1624.6,1.23117]
[1745311056529,0.00922196,1624.7,1624.6,2.99047]
[1745311056731,6.13879,1625.1,1624.9,1.23087]
[1745311056929,4.908,1625.1,1625.0,1.23086]
[1745311057432,6.13879,1625.1,1624.9,3.81657]
[1745311058532,4.908,1625.1,1624.9,0.8264]
[1745311058730,4.43866,1625.0,1624.9,0.8264]
[1745311058929,1.23094,1624.9,1624.8,0.84622196]
[1745311059936,4.4387,1625.0,1624.8,0.84622196]
[1745311060439,3.2078,1625.0,1624.9,1.23094]
[1745311062640,1.23094,1624.9,1624.8,0.00922196]
[1745311063327,2.05564,1624.9,1624.8,0.00922196]
[1745311064741,0.8247,1624.9,1624.8,0.00922196]
[1745311066341,0.8247,1624.9,1624.8,1.24023196]
[1745311067842,0.8247,1624.9,1624.8,0.00922196]
[1745311068338,2.05564,1624.9,1624.8,0.00922196]
[1745311071442,2.16364859,1624.9,1624.8,1e-08]
[1745311071941,7.16364859,1624.9,1624.8,1e-08]
[1745311073040,8.96825965,1624.9,1624.8,1e-08]
[1745311074138,12.17605965,1624.9,1624.8,1e-08]
[1745311075134,6.35135965,1624.9,1624.8,1e-08]
[1745311075445,5.0124,1624.9,1624.8,1.23101001]
[1745311075848,5.0124,1624.9,1624.8,2.93311001]
[1745311076038,5.0124,1624.9,1624.8,1.70210001]
[1745311076439,6.24334,1624.9,1624.8,1.70210001]
[1745311078445,6.24334,1624.9,1624.8,1e-08]
[1745311082856,5.0124,1624.9,1624.8,1.23101001]
[1745311083351,3.2078,1624.9,1624.8,6.23101001]
[1745311083651,1.7892,1625.0,1624.9,1.23094]
[1745311083953,4.997,1625.0,1624.9,2.94324]
[1745311085662,4.997,1625.0,1624.8,1e-08]
[1745311085863,3.02014,1624.9,1624.8,1e-08]
[1745311086362,3.89344,1624.9,1624.8,1e-08]
[1745311086952,4.00144189,1624.9,1624.8,1e-08]
[1745311088664,3.89344,1624.9,1624.8,1e-08]
[1745311088963,1.7892,1624.9,1624.8,1e-08]
[1745311089364,3.02014,1624.9,1624.8,1e-08]
[1745311090261,1.7892,1624.9,1624.8,1e-08]
[1745311090764,1.7892,1624.9,1624.8,1.23101001]
[1745311091763,1.7892,1624.9,1624.8,1e-08]
[1745311091966,3.02014,1624.9,1624.8,1e-08]
[1745311093156,1.7892,1624.9,1624.8,1e-08]
[1745311093356,1.7892,1624.9,1624.8,2.60270001]
[1745311093656,1.7892,1624.9,1624.8,3.49050001]
[1745311093964,3.02014,1624.9,1624.8,3.49050001]
[1745311094757,3.02014,1624.9,1624.8,1.73580001]
[1745311096663,3.02014,1624.9,1624.8,1e-08]
[1745311096863,3.12813941,1624.9,1624.8,1e-08]
[1745311097558,3.99733941,1624.9,1624.8,1e-08]
[1745311098169,3.99735341,1624.9,1624.8,1e-08]
[1745311099769,3.88934,1624.9,1624.8,1e-08]
[1745311099970,3.99735341,1624.9,1624.8,1e-08]
[1745311101057,3.12815341,1624.9,1624.8,1e-08]
[1745311102663,1.89721341,1624.9,1624.8,1e-08]
[1745311102869,1.7892,1624.9,1624.8,1.23101001]
[1745311103271,3.21702196,1625.2,1625.0,1.2308]
[1745311103474,4.85942196,1625.2,1625.1,0.8263]
[1745311103666,4.85942196,1625.2,1625.1,2.6033]
[1745311104468,3.21702196,1625.2,1625.1,3.83409]
[1745311104672,3.21702196,1625.2,1625.1,8.83409]
[1745311104869,0.00922196,1625.2,1625.1,8.83409]
[1745311105970,0.00922196,1625.2,1625.1,49.63409]
[1745311106164,0.00922196,1625.2,1625.1,48.4033]
[1745311106360,1.23993196,1625.2,1625.1,48.4033]
[1745311106566,0.00922196,1625.2,1625.1,44.63409]
[1745311107167,1.23993196,1625.2,1625.1,43.4033]
[1745311107367,2.99213196,1625.2,1625.1,43.4033]
[1745311107562,2.99213196,1625.2,1625.1,41.6263]
[1745311107967,2.99213196,1625.2,1625.1,42.85709]
[1745311107968,1.76142196,1625.2,1625.1,42.85709]
[1745311109369,2.99213196,1625.2,1625.1,41.6263]
[1745311109767,2.99213196,1625.2,1625.1,42.85709]
[1745311109768,0.00922196,1625.2,1625.1,42.85709]
[1745311109969,0.00922196,1625.2,1625.1,44.50439]
[1745311111672,1.6893,1625.4,1625.3,1.23064]
[1745311111869,1.23042,1625.6,1625.4,1.23053]
[1745311112071,1.6893,1625.5,1625.4,1.23053]
[1745311112575,4.8971,1625.5,1625.4,2.04763]
[1745311113873,1.23964196,1625.6,1625.5,1.23048]
[1745311113874,0.00922196,1625.6,1625.5,1.23048]
[1745311114068,0.00922196,1625.6,1625.5,3.01048]
[1745311114567,3.2078,1626.1,1625.9,1.23018]
[1745311114771,18.30273352,1626.2,1626.1,1.23003]
[1745311115274,18.30273352,1626.2,1626.1,2.10033]
[1745311115472,18.30273352,1626.2,1626.1,3.88033]
[1745311115771,18.30273352,1626.2,1626.1,8.76733]
[1745311115978,18.30273352,1626.2,1626.1,49.56733]
[1745311117276,0.00217275,1626.3,1626.2,1.22995]
[1745311117579,4.8442,1626.6,1626.5,1.22973]
[1745311117777,6.07385,1626.6,1626.5,1.22973]
[1745311118082,6.07385,1626.6,1626.4,1.22975]
[1745311118378,1.6364,1626.5,1626.4,2.13385]
[1745311119066,1.6364,1626.5,1626.3,1.22982]
[1745311119270,4.43765,1626.4,1626.3,1.22988]
[1745311120582,4.43765,1626.4,1626.2,1.2299]
[1745311120777,1.6482,1626.3,1626.2,1.2299]
[1745311121166,1.22995,1626.2,1626.1,42.5744]
[1745311121572,1.22995,1626.2,1626.1,40.8]
[1745311121771,4.43775,1626.2,1626.1,40.8]
[1745311122482,1.23003,1626.1,1626.0,1.23931196]
[1745311122679,1.23003,1626.1,1626.0,0.00922196]
[1745311122680,3.00643,1626.1,1626.0,0.00922196]
[1745311123379,8.00643,1626.1,1626.0,0.00922196]
[1745311123578,8.00643,1626.1,1625.5,3.07605]
[1745311123579,14.84458437,1626.1,1625.6,1.23037]
[1745311123777,3.2078,1625.7,1625.3,3.2078]
[1745311123975,1.2305,1625.5,1625.3,42.03058]
[1745311124176,4.9842,1625.4,1625.3,42.03058]
[1745311124771,4.9842,1625.4,1625.3,40.8]
[1745311125179,4.9842,1625.4,1625.3,1.23064]
[1745311125475,1.7764,1625.4,1625.3,1.23064]
[1745311126370,0.00922195,1625.5,1625.4,1.23056]
[1745311126877,1.74702195,1625.5,1625.4,1.23056]
[1745311127272,1.74702195,1625.5,1625.4,2.06086]
[1745311127273,0.00922195,1625.5,1625.4,2.06086]
[1745311127673,4.885,1625.8,1625.4,2.06086]
[1745311127674,3.2078,1625.8,1625.7,1.23033]
[1745311128182,3.2078,1625.8,1625.7,42.03033]
[1745311128585,4.9456,1625.8,1625.7,42.03033]
[1745311128777,6.17586,1625.8,1625.7,40.8]
[1745311130585,6.17586,1625.8,1625.7,42.03033]
[1745311131384,6.17586,1625.8,1625.7,40.8]
[1745311131976,6.17586,1625.8,1625.7,42.03033]
[1745311132181,6.17586,1625.8,1625.7,40.8]
[1745311133078,1.23048,1625.5,1625.4,0.8303]
[1745311133280,4.43828,1625.5,1625.4,0.8303]
[1745311133477,1.23056,1625.4,1625.2,6.11592196]
[1745311133680,1.6891,1625.4,1625.3,42.03064]
[1745311134287,4.0764,1625.9,1625.4,1.23056]
[1745311134584,4.0764,1625.9,1625.8,1.23026]
[1745311134585,3.2078,1625.9,1625.8,1.23026]
[1745311135084,4.43798,1625.9,1625.7,1.7184]
[1745311135280,3.2078,1625.9,1625.5,1.6971]
[1745311135481,3.2078,1625.9,1625.6,1.23034]
[1745311135685,3.2078,1625.9,1625.6,1.7184]
[1745311135885,1.23028,1625.8,1625.7,1.23032]
[1745311136283,3.2078,1625.9,1625.8,1.23026]
[1745311137087,1.23011,1626.0,1625.9,1.23018]
[1745311137480,1.23021,1625.9,1625.7,1.7184]
[1745311137681,1.23014,1626.0,1625.8,1.2302]
[1745311137882,1.23018,1625.9,1625.8,1.2302]
[1745311138279,1.6987,1626.0,1625.9,1.23018]
[1745311138887,1.6987,1626.0,1625.9,3.79508]
[1745311139192,1.23001,1626.2,1626.0,1.23007]
[1745311139388,2.92873,1626.1,1626.0,1.7202]
[1745311139589,2.92873,1626.1,1625.9,2.89914]
[1745311139888,1.6987,1626.0,1625.9,4.61934]
[1745311140290,2.98184,1626.3,1626.0,1.23008]
[1745311140492,2.92866,1626.2,1626.0,2.95028]
[1745311140791,2.92867,1626.2,1626.0,2.95028]
[1745311141090,2.92867,1626.2,1626.1,1.23003]
[1745311141287,1.22997,1626.2,1626.1,1.23003]
[1745311141679,1.22997,1626.2,1626.0,2.95025]
[1745311141884,6.28271,1626.2,1625.8,3.2078]
[1745311142084,1.23017,1626.0,1625.8,3.2078]
[1745311142290,1.23017,1626.0,1625.8,4.43802]
[1745311142695,1.23018,1625.9,1625.8,3.2078]
[1745311143191,1.23033,1625.7,1625.6,4.875]
[1745311143382,1.23041,1625.6,1625.5,3.2078]
[1745311143690,1.23055,1625.5,1625.3,42.03063]
[1745311144092,3.2078,1625.6,1625.3,40.8]
[1745311144292,1.23048,1625.5,1625.3,40.8]
[1745311144597,1.23048,1625.5,1625.3,42.03062]
[1745311144889,1.2305,1625.5,1625.3,42.03062]
[1745311145288,4.43826,1625.6,1625.3,42.03062]
[1745311145488,1.23049,1625.5,1625.3,42.03062]
[1745311145688,3.2078,1625.6,1625.2,3.21702196]
[1745311145880,1.23064,1625.3,1625.2,0.00922196]
[1745311146085,9.43844,1625.3,1625.2,0.00922196]
[1745311146281,4.876,1625.4,1625.2,0.00922196]
[1745311146493,1.23064,1625.3,1625.2,0.00922196]
[1745311146791,4.43844,1625.3,1625.2,0.00922196]
[1745311146992,7.20621303,1625.3,1625.2,0.00922196]
[1745311147193,10.41401303,1625.3,1625.2,0.00922196]
[1745311147891,9.18337303,1625.3,1625.2,0.00922196]
[1745311148293,4.876,1625.4,1625.2,1.23993196]
[1745311149886,6.10657,1625.4,1625.2,0.00922196]
[1745311150596,4.876,1625.4,1625.2,0.00922196]
[1745311150900,6.10657,1625.4,1625.2,2.58452196]
[1745311151897,4.876,1625.4,1625.2,3.81521196]
[1745311152097,4.876,1625.4,1625.2,3.81518196]
[1745311152297,3.2078,1625.5,1625.3,1.7503]
[1745311152497,1.23056,1625.4,1625.3,1.7503]
[1745311152700,1.23053,1625.5,1625.3,42.5503]
[1745311153199,1.23056,1625.4,1625.3,42.5503]
[1745311153602,1.23056,1625.4,1625.3,40.8]
[1745311153797,1.23064,1625.3,1625.2,0.00922196]
[1745311154098,2.91694,1625.3,1625.2,0.00922196]
[1745311154297,2.91694,1625.3,1625.2,40.80922196]
[1745311154896,2.91694,1625.3,1625.2,0.00922196]
[1745311156306,3.87871384,1625.3,1625.2,0.00922196]
[1745311156802,1.79427384,1625.3,1625.2,1.23993196]
[1745311157110,6.95425,1625.7,1625.2,12.61579196]
[1745311157307,1.7047,1625.6,1625.5,1.23048]
[1745311157602,1.7047,1625.6,1625.4,3.2078]
[1745311157603,1.7047,1625.6,1625.4,6.1917]
[1745311158710,1.7047,1625.6,1625.3,40.8]
[1745311158711,1.23048,1625.5,1625.3,40.8]
[1745311158900,1.7047,1625.4,1625.3,42.0306]
[1745311159207,1.7047,1625.4,1625.3,40.8]
[1745311159505,1.23064,1625.3,1625.2,0.00922196]
[1745311159906,4.61984,1625.3,1625.2,0.00922196]
[1745311160700,3.75094,1625.3,1625.2,0.00922196]
[1745311160901,1.6528,1625.3,1625.2,0.00922196]
[1745311161104,4.869,1625.4,1625.3,1.23064]
[1745311161304,4.869,1625.4,1625.3,3.2976]
[1745311161601,1.6528,1625.4,1625.3,3.2976]
[1745311161806,2.88336,1625.4,1625.3,3.2976]
[1745311162401,2.88336,1625.4,1625.3,44.0976]
[1745311162804,2.88336,1625.4,1625.3,42.4569]
[1745311163611,2.88336,1625.4,1625.3,40.8]
[1745311164310,1.23064,1625.3,1625.2,0.00922196]
[1745311164510,2.98574,1625.3,1625.2,0.00922196]
[1745311164908,7.98574,1625.3,1625.2,0.00922196]
[1745311165206,1.23106,1624.8,1624.5,1.23119]
[1745311165407,3.2078,1624.7,1624.5,2.89671]
[1745311165610,6.09731,1624.7,1624.5,1.6655]
[1745311165805,1.6584,1624.6,1624.5,2.89674]
[1745311167908,1.6584,1624.6,1624.5,1.6655]
[1745311168115,0.00922196,1624.7,1624.6,1.23117]
[1745311168416,0.00922196,1624.7,1624.6,2.93177]
[1745311168711,0.00922196,1624.7,1624.6,7.93177]
[1745311169214,1.23086,1625.0,1624.9,1.23091]
[1745311169514,1.22387846,1625.0,1624.9,1.23091]
[1745311170406,1.22387846,1625.0,1624.9,2.93151]
[1745311171310,1.22387846,1625.0,1624.9,1.7006]
[1745311171611,2.95127846,1625.0,1624.9,1.7006]
[1745311173010,1.23094,1624.9,1624.8,0.8225]
[1745311173212,6.16614,1624.9,1624.8,0.81551846]
[1745311173607,4.9352,1624.9,1624.6,2.04741]
[1745311173807,1.7274,1624.8,1624.6,0.8163]
[1745311174015,1.7274,1624.8,1624.7,1.23109]
[1745311174413,1.7274,1624.8,1624.7,2.98969]
[1745311175210,1.23124,1624.5,1624.4,0.00922196]
[1745311176017,2.97294,1624.5,1624.4,0.00922196]
[1745311176516,3.2078,1624.6,1624.5,1.23124]
[1745311176715,1.7417,1624.9,1624.6,1.23115]
[1745311176907,3.2078,1624.8,1624.7,1.23109]
[1745311177112,1.7417,1624.9,1624.8,1.23101]
[1745311177511,2.97265,1624.9,1624.7,3.00044]
[1745311177707,3.2078,1624.8,1624.6,0.8704]
[1745311177913,6.14112,1624.8,1624.7,1.23109]
[1745311178123,4.9101,1624.8,1624.7,1.23109]
[1745311178910,6.14111,1624.8,1624.7,1.23109]
[1745311180221,6.14114,1624.8,1624.6,2.6398]
[1745311180419,1.7023,1624.7,1624.6,3.87097]
[1745311181123,2.93339,1624.7,1624.6,0.8704]
[1745311181520,1.23117,1624.6,1624.5,0.8871]
[1745311181824,6.25047,1624.6,1624.5,0.8871]
[1745311182012,1.23124,1624.5,1624.4,0.00922196]
[1745311182324,3.04274,1624.5,1624.4,0.00922196]
[1745311182827,3.04274,1624.5,1624.4,1.24054196]
[1745311183021,1.8115,1624.5,1624.4,1.24054196]
[1745311183423,3.04274,1624.5,1624.4,0.00922196]
[1745311184319,3.04274,1624.5,1624.4,1.24054196]
[1745311184627,3.04274,1624.5,1624.4,0.00922196]
[1745311185830,6.25054,1624.5,1624.4,0.00922196]
[1745311186823,5.0193,1624.5,1624.4,1.24054196]
[1745311187029,1.8115,1624.5,1624.4,1.24054196]
[1745311187325,8.0778,1624.7,1624.5,1.23122]
[1745311187524,8.0778,1624.7,1624.4,1.78422196]
[1745311187525,2.9999,1624.6,1624.4,3.01548196]
[1745311187729,4.43904,1624.5,1624.4,0.00922196]
[1745311187926,6.20774,1624.5,1624.4,0.00922196]
[1745311188622,7.05844,1624.5,1624.4,0.00922196]
[1745311189521,7.16646519,1624.5,1624.4,0.00922196]
[1745311191030,7.16646925,1624.5,1624.4,0.00922196]
[1745311192330,8.0778,1624.7,1624.5,1.2312]
[1745311192626,11.02741,1624.7,1624.5,2.0788]
[1745311192831,11.02741,1624.7,1624.5,3.7663]
[1745311193135,11.02745,1624.7,1624.5,0.8476]
[1745311193328,1.7249,1624.6,1624.5,2.07884]
[1745311193527,2.95607,1624.6,1624.5,2.5351]
[1745311195132,2.95607,1624.6,1624.5,3.76634]
[1745311195729,1.7249,1624.6,1624.5,3.76634]
[1745311196233,2.95607,1624.6,1624.5,2.5351]
[1745311196532,2.95607,1624.6,1624.5,0.8476]
[1745311197831,2.95607,1624.6,1624.5,2.6182]
[1745311198532,1.7249,1624.6,1624.5,3.84944]
[1745311198923,2.95607,1624.6,1624.5,3.84944]
[1745311200125,1.23117,1624.6,1624.5,3.84944]
[1745311200331,9.30894,1624.7,1624.6,1.23117]
[1745311200527,9.30894,1624.7,1624.6,3.86867]
[1745311201336,3.2078,1624.7,1624.6,3.86867]
[1745311202427,4.43877,1624.9,1624.6,2.6375]
[1745311202731,4.863,1625.3,1625.1,1.23072]
[1745311202934,3.2078,1625.2,1625.1,1.23072]
[1745311203132,4.9889,1625.2,1625.1,2.88702]
[1745311203325,4.9889,1625.2,1625.1,43.68702]
[1745311203727,6.21961,1625.2,1625.1,42.4563]
[1745311204029,6.21961,1625.2,1625.1,40.8]
[1745311205334,4.9889,1625.2,1625.1,42.03079]
[1745311205636,6.21961,1625.2,1625.1,40.8]
[1745311206035,4.9889,1625.2,1625.1,40.8]
[1745311206238,4.85601846,1625.3,1625.2,1.23071]
[1745311206535,6.62871846,1625.3,1625.2,3.01201]
[1745311208540,1.7727,1625.3,1625.2,3.01201]
[1745311208739,3.2078,1625.4,1625.3,1.23064]
[1745311208939,3.2078,1625.4,1625.3,3.88634]
[1745311209136,1.7219,1625.5,1625.4,1.23056]
[1745311209334,1.7219,1625.5,1625.4,3.94686]
[1745311209736,2.95238,1625.5,1625.4,3.94686]
[1745311210038,2.95238,1625.5,1625.4,2.7163]
[1745311210937,8.0698,1625.6,1625.5,1.23048]
[1745311210938,4.43823,1625.6,1625.5,1.23048]
[1745311211134,1.23048,1625.5,1625.4,2.1357]
[1745311211341,2.91448,1625.5,1625.4,0.9052]
[1745311211526,2.91448,1625.5,1625.4,2.13576]
[1745311211730,4.43827,1625.6,1625.4,44.72726]
[1745311211930,4.43822,1625.6,1625.4,44.72726]
[1745311212134,4.43822,1625.6,1625.5,1.7915]
[1745311212431,3.2078,1625.6,1625.5,3.02198]
[1745311212836,4.8918,1625.6,1625.5,3.02198]
[1745311214338,6.12221,1625.6,1625.5,1.7915]
[1745311214539,1.23048,1625.5,1625.4,42.9357]
[1745311214735,1.6493,1625.5,1625.4,44.6918]
[1745311216643,2.87978,1625.5,1625.4,44.6918]
[1745311217642,1.6493,1625.5,1625.4,44.6918]
[1745311218239,3.2078,1625.6,1625.5,1.23048]
[1745311218436,4.43821,1625.6,1625.5,2.90848]
[1745311219543,3.2078,1625.6,1625.5,2.90848]
[1745311219746,4.43821,1625.6,1625.5,2.90848]
[1745311220042,2.95161,1625.6,1625.5,2.90848]
[1745311220932,1.7212,1625.6,1625.4,41.7052]
[1745311221236,2.88118,1625.5,1625.4,41.7052]
[1745311221442,2.88118,1625.5,1625.4,42.93576]
[1745311221642,2.88118,1625.5,1625.4,41.7052]
[1745311222343,6.08898,1625.5,1625.4,40.8]
[1745311224736,6.98378,1625.5,1625.4,40.8]
[1745311225442,6.98378,1625.5,1625.3,1.23984196]
[1745311225643,1.7343,1625.4,1625.3,1.23984196]
[1745311225845,1.7343,1625.4,1625.3,42.03984196]
[1745311226240,3.2078,1625.5,1625.4,1.23056]
[1745311226441,3.2078,1625.5,1625.4,3.92886]
[1745311226641,1.7536,1625.6,1625.5,1.23048]
[1745311226841,1.7536,1625.6,1625.5,3.92968]
[1745311227448,2.98401,1625.6,1625.5,3.92968]
[1745311228548,2.98401,1625.6,1625.5,2.6992]
[1745311229237,2.98401,1625.6,1625.5,0.8982]
[1745311229438,3.2078,1625.7,1625.5,0.8982]
[1745311229744,1.7977,1625.8,1625.7,1.23033]
[1745311229949,3.2078,1626.1,1625.6,12.93856]
[1745311230147,4.43785,1626.1,1625.9,1.23015]
[1745311230342,4.43785,1626.1,1626.0,3.4758]
[1745311231148,4.43785,1626.1,1626.0,1.674]
[1745311232049,1.23023,1625.9,1625.8,1.23026]
[1745311232249,4.43803,1625.9,1625.8,2.94246]
[1745311232642,4.43803,1625.9,1625.8,1.7122]
[1745311233452,4.43803,1625.9,1625.8,2.94246]
[1745311233751,1.7977,1626.0,1625.9,1.23018]
[1745311233952,3.2078,1626.1,1626.0,1.23011]
[1745311234258,1.23003,1626.1,1626.0,1.23011]
[1745311234551,2.86431,1626.2,1626.0,1.23011]
[1745311234760,1.6343,1626.2,1626.0,1.23011]
[1745311235049,4.43771,1626.3,1626.2,1.22995]
[1745311235241,6.07201,1626.3,1626.2,1.22995]
[1745311236255,6.07202,1626.3,1626.2,1.22995]
[1745311237551,4.8421,1626.3,1626.2,1.22995]
[1745311237748,6.07198,1626.3,1626.2,1.22995]
[1745311239760,6.07198,1626.3,1626.2,2.12725]
[1745311239946,6.07198,1626.3,1626.2,3.91775]
[1745311242763,6.07198,1626.3,1626.2,2.6878]
[1745311243261,6.07198,1626.3,1626.2,0.8973]
[1745311243560,6.07198,1626.3,1626.2,2.12725]
[1745311244161,1.22995,1626.2,1626.1,0.8661]
[1745311244463,2.92385,1626.2,1626.1,0.8661]
[1745311244862,1.6939,1626.2,1626.1,2.09613]
[1745311245059,1.6939,1626.2,1626.1,3.84313]
[1745311246174,4.4377,1626.3,1626.2,1.22995]
[1745311246363,4.4377,1626.3,1626.2,2.97695]
[1745311247462,4.4377,1626.3,1626.2,1.747]
[1745311247676,1.22995,1626.2,1626.1,2.09607]
[1745311247878,3.02265,1626.2,1626.1,2.09607]
[1745311248177,3.02265,1626.2,1626.1,42.89607]
[1745311249379,1.7927,1626.2,1626.1,42.89607]
[1745311249572,1.7927,1626.2,1626.1,44.53657]
[1745311250977,3.02265,1626.2,1626.1,44.53657]
[1745311251376,1.7927,1626.2,1626.1,44.53657]
[1745311251578,4.0249,1626.7,1626.2,1.22995]
[1745311251879,2.86711,1626.6,1626.5,1.22973]
[1745311253982,1.2298,1626.4,1626.3,0.00922196]
[1745311254669,2.9622,1626.4,1626.3,0.00922196]
[1745311258781,2.9622,1626.4,1626.1,44.0078]
[1745311258782,1.22995,1626.2,1626.1,40.8]
[1745311259381,2.96225,1626.2,1626.1,40.8]
[1745311259677,9.80732,1626.2,1625.7,3.2078]
[1745311259878,1.23024,1625.9,1625.6,2.88767]
[1745311260078,5.65976,1626.1,1625.6,1.6573]
[1745311260079,4.9561,1625.8,1625.6,1.6573]
[1745311260279,3.2078,1625.8,1625.7,42.03033]
[1745311260477,3.2078,1625.8,1625.7,40.8]
[1745311260682,4.43806,1625.8,1625.7,40.8]
[1745311264582,3.2078,1625.8,1625.7,40.8]
[1745311264778,4.43806,1625.8,1625.7,43.3206]
[1745311265180,3.2078,1625.8,1625.7,44.55093]
[1745311265478,1.23945196,1625.9,1625.7,44.55093]
[1745311265888,1.23945196,1625.9,1625.8,1.8006]
[1745311266091,4.44725196,1625.9,1625.8,1.8006]
[1745311267484,1.23945196,1625.9,1625.8,1.8006]
[1745311268085,4.44725196,1625.9,1625.8,1.8006]
[1745311268981,1.23945196,1625.9,1625.8,1.8006]
[1745311269181,1.23945196,1625.9,1625.8,11.23866]
[1745311269182,0.00922196,1625.9,1625.8,11.23866]
[1745311269388,0.00922196,1625.9,1625.8,16.08066]
[1745311269587,0.00922196,1625.9,1625.8,56.88066]
[1745311272389,3.2078,1626.3,1625.9,3.07542]
[1745311272692,3.2078,1626.3,1626.2,1.22995]
[1745311272987,1.22984,1626.4,1626.3,1.22988]
[1745311275993,2.90405,1626.5,1626.4,1.2298]
[1745311276577,4.74869,1626.5,1626.0,4.0621]
[1745311276794,4.43775,1626.2,1626.1,0.9059]
[1745311276993,1.22995,1626.2,1626.1,2.13593]
[1745311277293,1.23018,1625.9,1625.8,44.0078]
[1745311277683,4.43796,1626.0,1625.8,42.0302]
[1745311277890,1.23018,1625.9,1625.8,42.0302]
[1745311278087,2.99998,1625.9,1625.8,40.8]
[1745311279286,1.7698,1625.9,1625.8,40.8]
[1745311279792,1.7698,1625.9,1625.8,42.03026]
[1745311280495,1.7698,1625.9,1625.8,43.77816]
[1745311282291,3.2078,1626.0,1625.8,43.77816]
[1745311282292,3.2078,1626.2,1625.8,45.7557]
[1745311282495,1.7343,1626.1,1626.0,1.23011]
[1745311283292,1.7343,1626.1,1626.0,2.13371]
[1745311285996,3.2078,1626.2,1626.1,1.23003]
[1745311286293,3.2078,1626.5,1626.4,1.2298]
[1745311286685,4.9409,1626.5,1626.4,1.2298]